Cogmind - Beta 17 @@@ ROGUE MODE // 2026.07.06 @ 19:46:36 Player: star Result: Destroyed by Y-54 Guardian with Flak Gun Performance ------------- Evolutions (3) 1500 Regions Visited (9) 1800 Robots Destroyed (147) 735 Value Destroyed (5327) 5327 Prototype IDs (30) 600 Alien Tech Used (0) 0 Bonus (1837) 1837 TOTAL SCORE: 11799 Bonus ------- High Alert Combat Kills 1128 Follower Combat Kills 209 Entered Garrisons 200 Aligned with FarCom 300 Cogmind --------- Core Integrity 0/700 Matter 295/300 Energy 86/100 System Corruption 17% Temperature Cool (12) Movement Walking (120) Location -7/Storage Parts ------- > --- POWER (1) -------- (None) > --- PROPULSION (5) --- Light Treads Aluminum Leg Aluminum Leg > --- UTILITY (5) ------ Melee Analysis Suite Melee Analysis Suite Melee Analysis Suite Improved Melee Analysis Suite > --- WEAPON (2) ------- Impact Mace Impact Mace > --- INVENTORY (5) ---- PD Laser Axe Axe Peak State ------------ > --- POWER ------------ Improved Deuterium Engine > --- PROPULSION ------- Aluminum Leg Aluminum Leg Aluminum Leg Armored Huge Wheel > --- UTILITY ---------- Improved Heat Sink Medium Storage Unit Improved Core Shielding Improved Light Armor Plating Hacking Suite > --- WEAPON ----------- AWS/Gauss > --- INVENTORY -------- Light Nuclear Core Aluminum Leg Aluminum Leg Improved EM Shotgun Advanced Beam Cannon Advanced Beam Cannon Advanced Assault Cannon Datajack Katana [Rating: 48] Favorites ----------- Power Heavy Ion Engine Engine Heavy Ion Engine Power Core Nuclear Core Propulsion Aluminum Leg Treads Light Treads Leg Aluminum Leg Wheel Armored Huge Wheel Hover Unit Improved Hover Unit Utility Medium Storage Unit Device Improved Heat Sink Storage Medium Storage Unit Processor Improved Targeting Computer Hackware Hacking Suite Protection Improved Light Armor Plating Weapon Axe Energy Gun Improved EM Shotgun Energy Cannon Advanced Beam Cannon Ballistic Gun Assault Rifle Ballistic Cannon Advanced Assault Cannon Launcher Rocket Launcher Impact Weapon Impact Mace Slashing Weapon Axe Special Melee Weapon Datajack Build | -11 -10 -9 -9 -9 -8 -8 -7 -7 -7 ------- Run | Yrd Mat Mat Min Exi Min Mat Fac Gar Sto Slots Evolved 6 | . . 2 . . . 2 2 . . Power . | . . . . . . . . . . Propulsion 3 | . . 2 . . . 1 . . . Utility 3 | . . . . . . 1 2 . . Weapon . | . . . . . . . . . . Parts Attached 100 | 7 2 19 1 . 1 12 10 35 13 Power 10 | 1 . 3 . . . . . 5 1 Engine 7 | 1 . 3 . . . . . 2 1 Core 3 | . . . . . . . . 3 . Reactor . | . . . . . . . . . . Propulsion 44 | 2 1 6 . . . 6 4 18 7 Treads 4 | . . . . . . 1 . . 3 Leg 24 | 2 1 . . . . . . 17 4 Wheel 2 | . . . . . . . 1 1 . Hover 14 | . . 6 . . . 5 3 . . Flight . | . . . . . . . . . . Utility 21 | 1 1 2 1 . . 3 2 8 3 Device 7 | . . . 1 . . 2 1 3 . Storage 2 | 1 1 . . . . . . . . Processor 5 | . . . . . . 1 . 1 3 Hackware 1 | . . . . . . . . 1 . Protection 6 | . . 2 . . . . 1 3 . Artifact . | . . . . . . . . . . Weapon 25 | 3 . 8 . . 1 3 4 4 2 Energy Gun 7 | 2 . 3 . . . 2 . . . Energy Cannon 4 | . . 2 . . . 1 1 . . Ballistic Gun 6 | 1 . 3 . . . . 1 1 . Ballistic Cannon 1 | . . . . . . . . 1 . Launcher 1 | . . . . . 1 . . . . Special Weapon . | . . . . . . . . . . Impact Weapon 2 | . . . . . . . . . 2 Slashing Weapon 3 | . . . . . . . 1 2 . Piercing Weapon . | . . . . . . . . . . Special Melee Weapon 1 | . . . . . . . 1 . . Unidentified Prototypes 7 | . . 4 1 . . 1 . . 1 Corrupted Parts 1 | . . . . . . . . . 1 System Corruption 10 | . . . . . . . . . 10 Parts Lost 52 | . 4 1 . . . 8 6 21 12 Power 6 | . 2 1 . . . . . 2 1 Propulsion 27 | . 1 . . . . 6 3 9 8 Utility 10 | . . . . . . . 3 4 3 Weapon 9 | . 1 . . . . 2 . 6 . Highest Loss Streak 10 | . 2 1 . . . 3 4 10 4 To Critical Strikes . | . . . . . . . . . . Average Backups 7 | 1 6 9 10 9 9 7 7 7 3 Power 1 | . 1 . 1 1 1 1 1 1 . Propulsion 1 | . 2 2 2 2 2 . . . . Utility 1 | . 2 3 2 2 2 1 . 1 . Weapon 3 | . . 2 5 4 4 4 4 3 2 Tool/Special . | . . . . . . . . . . Unused Backups 20 | . 1 6 . . 1 4 1 2 5 Power 4 | . 1 1 . . . . . 1 1 Propulsion 3 | . . 3 . . . . . . . Utility 7 | . . 2 . . 1 2 . . 2 Weapon 5 | . . . . . . 2 1 1 1 Tool/Special 1 | . . . . . . . . . 1 Average Slot Usage (%) 86 | . 86 98 100 100 100 94 86 78 81 Engine 7 | . 12 9 11 11 11 9 7 3 6 Treads 1 | . . . . . . 2 1 . 9 Leg 13 | . 21 . . . . . . 25 16 Hover 16 | . 6 43 44 44 44 37 24 1 . Device 5 | . . . . . . 8 13 6 4 Storage 8 | . 14 11 11 11 11 9 7 7 1 Processor 5 | . . . . . . 8 7 4 19 Hackware 2 | . . . . . . . . 6 3 Protection 4 | . 3 11 11 11 11 . 5 5 2 Energy Gun 5 | . 13 8 11 11 11 12 4 . . Energy Cannon 3 | . . 5 11 11 8 4 5 1 . Ballistic Gun 3 | . 14 7 . . . . 1 2 . Slashing Weapon 3 | . . . . . . . . 6 9 Peak Build Rating 48 | 6 8 21 27 21 21 29 40 48 38 Average Rating 25 | 4 6 15 20 20 20 27 34 31 31 On Entrance 17 | . 6 7 20 20 21 21 25 21 32 Avg Prop Armor Cover (%) 11 | . . . . . . 9 12 10 17 Naked Turns . | . . . . . . . . . . Heaviest Build 36 | 12 21 27 26 26 26 27 32 36 36 Greatest Support 55 | 20 20 28 28 28 28 36 32 55 50 Greatest Overweight (x) 5 | . 1 . . . . 1 2 2 5 Average Overweight (x) . | . . . . . . . . . . Largest Inventory Capacity 10 | 8 10 10 10 10 10 10 10 10 10 Average Capacity 9 | 7 9 10 10 10 10 10 10 10 5 Most Carried 10 | 2 10 10 10 10 10 10 10 10 10 Average Carried 8 | 1 6 9 9 9 9 8 8 8 5 Final Capacity 10 | 8 10 10 10 10 10 10 10 10 5 Final Carried 10 | 2 10 10 10 10 10 9 10 10 5 Class Distribution -------------------- 55% | Mutant 21% | Scavenger-Mutant 21% | Scavenger-Gladiator Dominant Class ---------------- Mutant | -10/Materials Mutant | -9/Materials Mutant | -9/Mines Mutant | -9/Exiles Mutant | -8/Mines Mutant | -8/Materials Mutant | -7/Factory Scavenger-Mutant | -7/Garrison Scavenger-Gladiator | -7/Storage Resources | -11 -10 -9 -9 -9 -8 -8 -7 -7 -7 ----------- Run | Yrd Mat Mat Min Exi Min Mat Fac Gar Sto Matter Collected 2494 | 204 167 324 20 . 53 590 225 779 132 Remotely 261 | . . . . . . 54 207 . . Salvage Created 5668 | . 215 631 . . 121 1067 844 1969 821 Parts 266 | . 7 43 . . 5 67 46 73 25 Haulers Intercepted 12 | . . 5 . . . 5 . . 2 Recyclers Shooed 2 | . . . . . . 1 . . 1 Parts Field Recycled . | . . . . . . . . . . Retrieved Matter . | . . . . . . . . . . Parts Self-Destructed . | . . . . . . . . . . Prevented . | . . . . . . . . . . Parts Restored . | . . . . . . . . . . Kills | -11 -10 -9 -9 -9 -8 -8 -7 -7 -7 ------- Run | Yrd Mat Mat Min Exi Min Mat Fac Gar Sto Combat Hostiles Destroyed 113 | . 7 11 . . 3 24 15 43 10 Melee 18 | . . . . . . . . 11 7 Guns 48 | . 7 5 . . . 8 11 17 . Cannons 12 | . . 5 . . . . . 7 . AOE 30 | . . . . . 3 16 4 7 . Classes Destroyed 13 | . 2 2 . . . 6 2 1 . Worker 9 | . . . . . . 5 2 . 2 Builder 2 | . . . . . . 1 1 . . Hauler 12 | . . 5 . . . 5 . . 2 Recycler 5 | . . . . . . . 2 . 3 Operator 3 | . . . . . . 2 1 . . Watcher 3 | . . . . . . 2 1 . . Swarmer 33 | . 3 4 . . . 6 4 16 . Grunt 61 | . 4 5 . . 3 15 8 21 5 Brawler 2 | . . . . . . 1 . 1 . Duelist 2 | . . . . . . . . 2 . Sentry 10 | . . 2 . . . 1 2 2 3 Hunter 1 | . . . . . . 1 . . . Programmer 4 | . . . . . . . 1 1 2 Best Kill Streak 9 | . 2 3 . . 3 6 7 9 7 Combat Bots Only 9 | . 2 3 . . 3 5 4 9 3 Max Kills in Single Turn 5 | . 1 2 . . 3 3 5 2 1 Gunslinging . | . . . . . . . . . . Exploded 3 | . . . . . 3 3 2 2 . Melee 1 | . . . . . . . . 1 1 Uniques/NPCs Destroyed . | . . . . . . . . . . Combat | -11 -10 -9 -9 -9 -8 -8 -7 -7 -7 -------- Run | Yrd Mat Mat Min Exi Min Mat Fac Gar Sto Hostile Shots Fired 623 | . 50 36 . . . 49 102 220 166 Missed 182 | . 10 7 . . . 21 40 63 41 Hits 441 | . 40 29 . . . 28 62 157 125 Melee 5 | . . . . . . . . 5 . Projectile 436 | . 40 29 . . . 28 62 152 125 AOE 1 | . . . . . . . . 1 . Critical Strikes 9 | . . 1 . . . 2 1 4 1 Actively Blocked 2 | . . . . . . . 1 1 . Damage Taken 5980 | . 486 324 . . . 733 682 2514 1241 Core 1019 | . 69 69 . . . 177 110 393 201 Absorbed by Shields . | . . . . . . . . . . Redirected to Shielding 160 | . . . . . . . 102 58 . Regen/Repaired (Parts) 34 | . . . . . . 34 . . . Core Remaining (%) 80 | 100 72 . . . 82 67 . . . Volleys Fired 191 | . 28 36 . . 3 63 16 45 . Largest 2 | . 2 2 . . 1 2 2 2 . Hottest 136 | . 60 136 . . 33 124 136 113 . Shots Fired 442 | . 55 70 . . 3 93 82 139 . Gun 286 | . 55 54 . . . 43 65 69 . Cannon 104 | . . 16 . . . 19 13 56 . Launcher 52 | . . . . . 3 31 4 14 . Special . | . . . . . . . . . . Kinetic 201 | . 28 25 . . . . 54 94 . Thermal 93 | . 21 20 . . . 9 13 30 . Explosive 52 | . . . . . 3 31 4 14 . Electromagnetic 96 | . 6 25 . . . 53 11 1 . Robot Hit Streak 21 | . 7 9 . . 2 21 17 10 . Robot Miss Streak 3 | . 3 3 . . . 3 2 3 . Penetration Max . | . . . . . . . . . . Secondary Targets . | . . . . . . . . . . Autonomous 123 | . . . . . . . 54 69 . Shots Hit Robots 437 | . 35 50 . . 1 64 69 163 55 Core Hits 243 | . 10 25 . . 9 73 39 74 13 Critical Kills 3 | . . 1 . . . . . 2 . Critical Parts Destroyed 8 | . . . . . . . . 1 7 Critical Strikes 28 | . . 1 . . . . 1 15 11 Meltdown 2 | . . 1 . . . . . 1 . Destroy 3 | . . . . . . . 1 2 . Blast 3 | . . . . . . . . 3 . Smash 8 | . . . . . . . . . 8 Sever 12 | . . . . . . . . 9 3 Melee Attacks 149 | . . . . . . . 2 86 61 Impact 35 | . . . . . . . . . 35 Slashing 100 | . . . . . . . . 74 26 Piercing . | . . . . . . . . . . Sneak Attacks 21 | . . . . . . . 2 12 7 Combat Hostiles . | . . . . . . . . . . Follow-up Attacks 15 | . . . . . . . . 6 9 Damage Inflicted 16063 | . 463 749 . . 249 3618 2431 5929 2624 Guns 5330 | . 423 506 . . . 705 1885 1811 . Cannons 1412 | . . 243 . . . 219 165 785 . Explosions 4152 | . 40 . . . 249 2694 381 788 . Melee 5161 | . . . . . . . . 2537 2624 Ramming 8 | . . . . . . . . 8 . Kinetic 4461 | . 240 247 . . . . 1689 2285 . Thermal 1501 | . 170 276 . . . 484 165 406 . Explosive 3618 | . . . . . 249 2314 381 674 . Electromagnetic 1314 | . 53 226 . . . 820 196 19 . Impact 1643 | . . . . . . . . . 1643 Slashing 3518 | . . . . . . . . 2537 981 Piercing . | . . . . . . . . . . Highest Corruption 17 | . 1 . . . . . . 4 17 Average Corruption 4 | . 1 . . . . . . 3 8 Corruption Purged . | . . . . . . . . . . Corruption Blocked . | . . . . . . . . . . Effects 41 | . 5 . . . . . . 21 15 Message Errors 13 | . 2 . . . . . . 10 1 Matter Fused 10 | . 2 . . . . . . 4 4 Heat Flow Errors 7 | . . . . . . . . . 7 Energy Discharges 2 | . . . . . . . . 1 1 Data Loss (minor) 3 | . . . . . . . . 1 2 Data Loss (major) 1 | . . . . . . . . 1 . Alerts 5 | . 1 . . . . . . 4 . Overload Shots . | . . . . . . . . . . Overflow Damage 843 | . 2 . . . . 251 . 51 539 Projectiles 4 | . . . . . . . . 4 . Explosions 272 | . 2 . . . . 251 . 19 . Melee 567 | . . . . . . . . 28 539 Knockbacks 10 | . . . . . . . . 6 4 Impact 4 | . . . . . . . . . 4 Kinetic 5 | . . . . . . . . 5 . Secondary 1 | . . . . . . . . 1 . Self-Inflicted Damage 467 | . 37 . . . . 309 . 121 . Shots 11 | . 1 . . . . 7 . 3 . Rammed . | . . . . . . . . . . Targets Rammed 2 | . . . . . . . . 2 . Kicked 2 | . . . . . . . . 2 . Crushed . | . . . . . . . . . . Highest Temperature 336 | . 24 336 . . 3 84 322 21 269 Average Temperature 73 | . 9 93 . . 2 23 142 8 85 Received Heat Transfer 1779 | . 192 132 . . . 234 282 480 459 Effects 1 | . . 1 . . . . . . . Energy Bleed 1 | . . 1 . . . . . . . Siege Activations . | . . . . . . . . . . Martial Activations . | . . . . . . . . . . Shielding Activations . | . . . . . . . . . . Robots Disrupted . | . . . . . . . . . . Combat Hostiles . | . . . . . . . . . . Robots Corrupted 6 | . . . . . . 1 . . 5 Combat Hostiles 3 | . . . . . . . . . 3 Parts Fried 8 | . . . . . . 5 1 1 1 Impact Corruptions 17 | . . . . . . . . 1 16 Robots Melted 2 | . . 1 . . . . . 1 . Combat Hostiles 2 | . . 1 . . . . . 1 . Parts Melted 5 | . . 4 . . . . . 1 . Heat Transferred 2481 | . 350 519 . . . 685 259 668 . Parts Sabotaged 4 | . . . . . . . . 4 . Parts Stolen . | . . . . . . . . . . Parts Stripped . | . . . . . . . . . . Power Chain Reactions 8 | . 1 . . . . 6 . 1 . Alert | -11 -10 -9 -9 -9 -8 -8 -7 -7 -7 ------- Run | Yrd Mat Mat Min Exi Min Mat Fac Gar Sto Maximum Alert Level 5 | . . . . . . 2 2 5 3 Low Security (%) 34 | 100 100 100 100 . 100 44 7 . . Level 1 15 | . . . . . . 37 84 1 . Level 2 11 | . . . . . . 17 7 17 . Level 3 16 | . . . . . . . . 22 100 Level 4 12 | . . . . . . . . 33 . Level 5 9 | . . . . . . . . 24 . High Security . | . . . . . . . . . . Max Security . | . . . . . . . . . . Peak Influence 2145 | . 75 137 51 . 96 604 425 2145 1063 Initial 1045 | . . . 51 . . 25 271 286 1045 Average 616 | . 12 72 10 . 60 243 271 1184 1009 Influence Increases 4701 | . 174 311 . . 106 1098 484 2189 339 Destroy 0b10 Robot/C 2420 | . 140 220 . . 60 480 300 1000 220 Destroy 0b10 Robot/NC 195 | . . 25 . . . 75 35 25 35 Destroy Leader 370 | . 10 50 . . 10 114 62 50 74 Allied During Kill 25 | . . . . . . . . 19 6 Successful Hack 12 | . 6 . . . . . . 6 . Select Force Hacks 30 | . . . . . . 30 . . . Disable Machine 150 | . . . . . 15 105 15 15 . Anti-Garrison Action 800 | . . . . . . . . 800 . Destroy Structure 309 | . 3 1 . . 21 174 27 79 4 Partial Spotted 45 | . . 15 . . . 30 . . . Lose Combat Pursuer 345 | . 15 . . . . 90 45 195 . Influence Decreases 3695 | . 174 180 131 . 40 566 673 453 1478 Entered New Map 1671 | . . . 80 . . 41 327 123 1100 Time Decay 1384 | . 154 170 51 . 40 445 286 . 238 Lost Part 500 | . 20 10 . . . 80 60 210 120 Lost Ally 140 | . . . . . . . . 120 20 Squads Dispatched 19 | . . 1 . . . 10 6 . 2 Investigation 3 | . . . . . . 2 1 . . Extermination 2 | . . . . . . . 1 . 1 Reinforcement 10 | . . 1 . . . 6 2 . 1 Assault . | . . . . . . . . . . Garrison 4 | . . . . . . 2 2 . . Intercept . | . . . . . . . . . . Searches Triggered . | . . . . . . . . . . Construction Impeded 4 | . . . . . . 3 1 . . Haulers Reinforced 1 | . . . . . . . . . 1 Active Scanning Responses . | . . . . . . . . . . Cargo Convoy Interrupts . | . . . . . . . . . . Stealth | -11 -10 -9 -9 -9 -8 -8 -7 -7 -7 --------- Run | Yrd Mat Mat Min Exi Min Mat Fac Gar Sto Distress Signals 12 | . . 4 . . . 6 1 1 . Communications Jammed . | . . . . . . . . . . Distress Signals . | . . . . . . . . . . Times Spotted 161 | . 13 17 . . 2 37 20 60 12 Peak Tracking Total 8 | . 4 6 . . 3 5 4 8 4 Tactical Retreats 18 | . 1 . . . . 5 2 10 . Traps | -11 -10 -9 -9 -9 -8 -8 -7 -7 -7 ------- Run | Yrd Mat Mat Min Exi Min Mat Fac Gar Sto Traps Triggered 4 | . 1 . . . . . . 3 . Indirectly . | . . . . . . . . . . Trap Hack Attempts . | . . . . . . . . . . Triggered . | . . . . . . . . . . Disarmed . | . . . . . . . . . . Reprogrammed . | . . . . . . . . . . Reused . | . . . . . . . . . . Traps Extracted . | . . . . . . . . . . Installed . | . . . . . . . . . . Triggered . | . . . . . . . . . . Machines | -11 -10 -9 -9 -9 -8 -8 -7 -7 -7 ---------- Run | Yrd Mat Mat Min Exi Min Mat Fac Gar Sto Machines Disabled 14 | . . . . . 1 7 1 5 . Max in Single Turn 3 | . . . . . 1 3 1 1 . Garrison Relay 3 | . . . . . . . . 3 . Phase Generator 1 | . . . . . . . . 1 . Machines Repaired . | . . . . . . . . . . Machines Dismantled . | . . . . . . . . . . Machines Sabotaged . | . . . . . . . . . . Overloaded Fab Kills . | . . . . . . . . . . Hacking | -11 -10 -9 -9 -9 -8 -8 -7 -7 -7 --------- Run | Yrd Mat Mat Min Exi Min Mat Fac Gar Sto Machines Accessed 17 | . 2 . 1 1 1 5 2 4 1 Terminals 8 | . 1 . . . 1 1 . 4 1 Fabricators . | . . . . . . . . . . Repair Stations 3 | . 1 . . . . 2 . . . Recycling Units . | . . . . . . . . . . Scanalyzers 2 | . . . . . . 1 1 . . Garrison Access 2 | . . . . . . 1 1 . . Total Hacks 27 | . 2 . 1 1 1 8 5 8 1 Successful 15 | . 2 . 1 1 1 4 3 2 1 Failed 12 | . . . . . . 4 2 6 . Catastrophic 3 | . . . . . . . . 3 . Database Lockouts . | . . . . . . . . . . Manual 5 | . . . . 1 . 4 . . . Terminals 12 | . 1 . . . 1 1 . 8 1 Fabricators . | . . . . . . . . . . Repair Stations 6 | . 1 . . . . 5 . . . Recycling Units . | . . . . . . . . . . Scanalyzers 4 | . . . . . . 1 3 . . Garrison Access 3 | . . . . . . 1 2 . . Terminal Hacks 7 | . 1 . 1 1 1 . . 2 1 Record 2 | . 1 . . . 1 . . . . Open Door 3 | . . . 1 . . . . 1 1 Emergency Access Points 1 | . . . . . . . . 1 . Proto ID Catalog 1 | . . . . 1 . . . . . Fabricator Hacks . | . . . . . . . . . . Repair Station Hacks 3 | . 1 . . . . 2 . . . Scan Component 1 | . . . . . . 1 . . . Repair 1 | . . . . . . 1 . . . Refit 1 | . 1 . . . . . . . . Recycling Unit Hacks . | . . . . . . . . . . Scanalyzer 2 | . . . . . . . 2 . . Insert Component 1 | . . . . . . . 1 . . Analyze 1 | . . . . . . . 1 . . Garrison Access Hacks 1 | . . . . . . . 1 . . Unlock Access 1 | . . . . . . . 1 . . Unauthorized Hacks 2 | . . . . . . 2 . . . Terminals 1 | . . . . . . 1 . . . Assimilate 1 | . . . . . . 1 . . . Fabricators . | . . . . . . . . . . Repair Stations . | . . . . . . . . . . Recycling Units . | . . . . . . . . . . Scanalyzers . | . . . . . . . . . . Garrison Access 1 | . . . . . . 1 . . . Eject 1 | . . . . . . 1 . . . Data Cores Recovered . | . . . . . . . . . . Used . | . . . . . . . . . . Hacking Detections 8 | . . . . . . 3 2 3 . Full Trace Events 5 | . . . . . . 1 1 3 . Feedback Events . | . . . . . . . . . . Feedback Blocked . | . . . . . . . . . . Robot Schematics Acquired . | . . . . . . . . . . Robots Built . | . . . . . . . . . . Authchips . | . . . . . . . . . . Time . | . . . . . . . . . . Total Robot Build Rating . | . . . . . . . . . . Part Schematics Acquired 1 | . . . . . . . 1 . . Parts Built . | . . . . . . . . . . Authchips . | . . . . . . . . . . Time . | . . . . . . . . . . Total Part Build Rating . | . . . . . . . . . . Part Studies Acquired . | . . . . . . . . . . Parts Repaired 1 | . . . . . . 1 . . . Time 38 | . . . . . . 38 . . . Parts Recycled . | . . . . . . . . . . Recycled Matter . | . . . . . . . . . . Retrieved Matter . | . . . . . . . . . . Retrieved Components . | . . . . . . . . . . Parts Scanalyzed 1 | . . . . . . . 1 . . Part Schematics Acquired 1 | . . . . . . . 1 . . Parts Damaged . | . . . . . . . . . . Bothacking | -11 -10 -9 -9 -9 -8 -8 -7 -7 -7 ------------ Run | Yrd Mat Mat Min Exi Min Mat Fac Gar Sto Used RIF Installer . | . . . . . . . . . . Robots Hacked 2 | . . . . . . . 2 . . Non-combat 2 | . . . . . . . 2 . . Combat . | . . . . . . . . . . Robot Hacks Applied 2 | . . . . . . . 2 . . no_distress 1 | . . . . . . . 1 . . find_chute 1 | . . . . . . . 1 . . Relay Couplers Released 16 | . . . . . . 4 . 12 . Ejected 4 | . . . . . . 4 . . . Machine Destruction 12 | . . . . . . . . 12 . Fabnet Peak Effective % . | . . . . . . . . . . Robots Rewired 6 | . . . . . . . . 6 . Allies Hacked 2 | . . . . . . . . 2 . Hacks Repelled . | . . . . . . . . . . Allies | -11 -10 -9 -9 -9 -8 -8 -7 -7 -7 -------- Run | Yrd Mat Mat Min Exi Min Mat Fac Gar Sto Total Allies 9 | . . . . . . . . 9 . Largest Group 3 | . . . . . . . . 3 1 Highest-Rated Group 90 | . . . . . . . . 90 62 Highest-Rated Ally 62 | . . . . . . . . 62 62 Initial Warlord ECA Mod 6 | . . . . . . . . . 6 Total Orders . | . . . . . . . . . . Ally Attacks 27 | . . . . . . . . 21 6 Total Damage 996 | . . . . . . . . 745 251 Kills 9 | . . . . . . . . 8 1 Allies Corrupted 2 | . . . . . . . . 2 . Allies Melted . | . . . . . . . . . . Intel | -11 -10 -9 -9 -9 -8 -8 -7 -7 -7 ------- Run | Yrd Mat Mat Min Exi Min Mat Fac Gar Sto Active Infowar (turns) . | . . . . . . . . . . Robot Analysis Total . | . . . . . . . . . . Derelict Logs Recovered 1 | . . . 1 . . . . . . Drone Launches . | . . . . . . . . . . Drone Recoveries . | . . . . . . . . . . Exploration | -11 -10 -9 -9 -9 -8 -8 -7 -7 -7 ------------- Run | Yrd Mat Mat Min Exi Min Mat Fac Gar Sto Turns Passed 6447 | 72 730 399 294 103 82 1188 628 2445 506 Spaces Moved 4850 | 54 468 317 537 211 127 1131 373 1422 210 Core 7 | 6 . . . . . . . . 1 Treads 79 | . . . . . . . . . 79 Legs 1731 | 48 367 . . . . . . 1186 130 Wheels 289 | . . . . . . . 168 121 . Hover 2744 | . 101 317 537 211 127 1131 205 115 . Flight . | . . . . . . . . . . Fastest Speed 44 | 50 120 48 48 48 48 44 44 52 120 Average Speed 93 | 112 128 50 48 48 48 56 101 137 153 Slowest Speed 300 | 120 190 58 48 48 48 136 196 260 300 Overloaded Moves . | . . . . . . . . . . Propulsion Burnouts . | . . . . . . . . . . Robots Hopped . | . . . . . . . . . . Potential Cave-ins . | . . . . . . . . . . Cave-ins Triggered . | . . . . . . . . . . Exploration Rate (%) 48 | 3 75 29 95 60 27 63 9 96 23 Regions Visited 9 Branch Regions 4 Pre-discovered Areas 1 | . . . 1 . . . . . . Known Exits Taken 1 | . . . . . . . 1 . . Unknown Exits Taken 7 | 1 1 1 1 1 1 1 . . . Scrap Searched 4 | . . . 4 . . . . . . Spaces Dug 15 | . . . . . . 6 . 7 2 Terrain Destroyed 306 | . 3 . . . 30 174 43 54 2 Melee 3 | . . . . . . . . 1 2 Projectile 26 | . . . . . . . 15 11 . AOE 277 | . 3 . . . 30 174 28 42 . Terrain Rammed . | . . . . . . . . . . Walls Destroyed . | . . . . . . . . . . Machines Disabled . | . . . . . . . . . . Actions | -11 -10 -9 -9 -9 -8 -8 -7 -7 -7 --------- Run | Yrd Mat Mat Min Exi Min Mat Fac Gar Sto Total 6241 | 62 542 491 572 213 144 1579 591 1732 315 Wait 742 | . 30 84 30 . 7 336 164 54 37 Move 4842 | 53 467 316 536 210 126 1130 373 1421 210 Hop . | . . . . . . . . . . Pick Up 64 | 2 10 14 2 1 2 11 8 11 3 Fast Attach 50 | 6 1 . . . 1 5 5 23 9 Attach 35 | . 2 4 . . . 8 5 15 1 Detach 8 | . 1 . . . . 2 1 4 . Swap 65 | 1 . 19 2 . 2 16 8 13 4 Drop 65 | . 3 18 2 2 3 8 9 18 2 Fire 191 | . 28 36 . . 3 63 16 45 . Melee 129 | . . . . . . . 2 78 49 Ram . | . . . . . . . . . . Kick 2 | . . . . . . . . 2 . Crush . | . . . . . . . . . . Escape Stasis 26 | . . . . . . . . 26 . Rewire 22 | . . . . . . . . 22 . Trap . | . . . . . . . . . . Miscellaneous . | . . . . . . . . . . Route ------- -11/Scrapyard -10/Materials (discovered 3 exits: [*Mat x3]) -9/Materials -9/Mines (discovered 3 exits: *Mat x2 / *Exi) -9/Exiles -8/Mines -8/Materials -7/Factory -7/Garrison (discovered 3 exits: *Sto x3) -7/Storage History --------- Turn | Location | Event 40 | -11/Scrapyard | Discovered new exit (range 15) 73 | -11/Scrapyard | Entered Materials 176 | -10/Materials | Discovered new exit (range 15) 315 | -10/Materials | Build established: Mutant 363 | -10/Materials | Discovered new exit (range 12) 748 | -10/Materials | Discovered new exit (range 15) 803 | -10/Materials | Entered another Materials area 803 | -9/Materials | Evolved 2 slots: Propulsion x2 1181 | -9/Materials | Discovered new exit (range 12) 1202 | -9/Materials | Entered Mines 1211 | -9/Mines | Met a Derelict bent on vengeance 1215 | -9/Mines | Discovered new exit (range 15) 1218 | -9/Mines | Found the Drone Emporium 1230 | -9/Mines | Found Prototype Device 1230 | -9/Mines | Identified Sensor Drone Bay 1278 | -9/Mines | Joined a pair of Derelicts in attacking an 0b10 outpost 1325 | -9/Mines | Discovered new exit (range 6) 1377 | -9/Mines | Found a hidden stash of uninstalled traps 1435 | -9/Mines | A weapon hastily lodged in a ceiling crevice suddenly fell to the ground 1494 | -9/Mines | Deemed a non-threat by the Exiles lab entrance 1494 | -9/Mines | Discovered new exit (range 5) 1496 | -9/Mines | Entered Exiles 1508 | -9/Exiles | Met 8R-AWN 1517 | -9/Exiles | Met EX-HEX 1531 | -9/Exiles | Met EX-BIN 1537 | -9/Exiles | Aligned with FarCom system 1538 | -9/Exiles | Given EX-Vault access code 1549 | -9/Exiles | Opened EX-Vault 1553 | -9/Exiles | Found AWS/Gauss 1563 | -9/Exiles | Warned to stay clear of 0b10 Research branches 1578 | -9/Exiles | Met EX-DEC 1595 | -9/Exiles | Discovered new exit (range 12) 1599 | -9/Exiles | Left Exiles lab with AWS/Gauss 1599 | -9/Exiles | Entered Mines 1675 | -8/Mines | Discovered new exit (range 14) 1681 | -8/Mines | Entered Materials 1681 | -8/Materials | Evolved 2 slots: Propulsion x1, Utility x1 2348 | -8/Materials | Discovered new exit (range 5) 2377 | -8/Materials | Garrison activated, responded to threat 2450 | -8/Materials | Repaired Airjet 2511 | -8/Materials | Lost 3 parts (3n) 2834 | -8/Materials | Garrison activated, responded to threat 2869 | -8/Materials | Entered Factory 2869 | -7/Factory | Evolved 2 slots: Utility x2 3390 | -7/Factory | Garrison activated, responded to threat 3414 | -7/Factory | Lost 4 parts (2n2u) 3497 | -7/Factory | Identified exit to Garrison 3497 | -7/Factory | Entered Garrison 3514 | -7/Garrison | Triggered checkpoint 3528 | -7/Garrison | Triggered checkpoint 3572 | -7/Garrison | Lost 4 parts (1p2n1w) 3576 | -7/Garrison | Destroyed 9 combat bots 3717 | -7/Garrison | Triggered checkpoint 4052 | -7/Garrison | Discovered new exit (range 14) 4076 | -7/Garrison | Build established: Scavenger-Mutant 4105 | -7/Garrison | Triggered checkpoint 4281 | -7/Garrison | Rescued a captive Derelict 4413 | -7/Garrison | AWS/Gauss suddenly broke down 4421 | -7/Garrison | Triggered checkpoint 4625 | -7/Garrison | Phase Generator disabled 4629 | -7/Garrison | Discovered new exit (range 12) 4673 | -7/Garrison | Triggered checkpoint 4825 | -7/Garrison | P-60 Hacker assimilated allied Gladiator 4b 4870 | -7/Garrison | Lost 4 allies 4876 | -7/Garrison | Lost 10 parts (1p4n2u3w) 5019 | -7/Garrison | Discovered new exit (range 14) 5053 | -7/Garrison | Core integrity fell below 50% 5135 | -7/Garrison | Triggered checkpoint 5145 | -7/Garrison | Garrison Relay disabled 5157 | -7/Garrison | Triggered checkpoint 5163 | -7/Garrison | Garrison Relay disabled 5306 | -7/Garrison | Build established: Scavenger-Gladiator 5361 | -7/Garrison | Triggered checkpoint 5557 | -7/Garrison | Found embedded Infiltrators 5942 | -7/Garrison | Entered Storage 5942 | -7/Storage | Accompanied by 1 ally 6092 | -7/Storage | Core integrity fell below 20% 6126 | -7/Storage | Lost 4 parts (3n1u) 6326 | -7/Storage | Lost 4 parts (3n1u) 6348 | -7/Storage | System corruption reached 10% 6448 | -7/Storage | Destroyed by Y-54 Guardian with Flak Gun Last Messages --------------- 06422_ Y-54 Guardian system terminally corrupted. 06422_ Lgt. Treads destroyed. 06426_ Y-54 Guardian misfires. 06427_ K-01 Serf collects debris. 06434_ Y-54 Guardian suffers critical hit (Smash). 06434_ Y-54 Guardian IFF system glitched. 06435_ K-01 Serf collects debris. 06437_ Y-54 Guardian destroyed. 06437_ K-01 Serf collects debris. 06438_ Imp. Deuterium Engine destroyed. 06439_ System corrupted: Matter fused (-5). 06440_ K-01 Serf collects debris. 06442_ Y-54 Guardian suffers critical hit (Smash). 06442_ Destroyed Imp. Deuterium Engine. 06442_ Y-54 Guardian system corrupted by crushing effect. 06444_ K-01 Serf collects debris. 06448_ Y-54 Guardian suffers critical hit (Smash). 06448_ Destroyed Imp. Heat Sink. 06448_ Y-54 Guardian system corrupted by crushing effect. 06448_ Impact Mace follow-up attack on Y-54 Guardian. Map ----- +----------------------------------------------------+ | | | | | | | | | | | ?????????????????????????????????????????????????? | | ????????????????????????????????????########?????? | | ????????????????????????????????????#!!!!#T##????? | | ????????????????????????????????????# #????? | | ????????????????????????????????????#!!!!# #????? | | ?????????#?????????????#######??????###### #????? | | ????????? ########## ##############+###### | | ????????# | | ????????+ % % | | ????????# % % | | ???????????????###+####" = ##############+##### | | ??????????????????????#"# ##???????????# % ## | | ??????????????????????### %#????????????# ## | | ????????????????????????# #????????????# ## | | ????????????????????????# #????????????# !## | | ????????????????????????#% #????????????# ## | | ?????????#??????????????# #????????????#= ## | | ?????????# ############% #????????????# ## | | ?????????# ^ %!![t%[ #????????????# ## | | ?????????+ !^^ % [!=k* #????????????# ! ## | | ?????????# [%^! %[ *@k #????????????# # | | ?????????## ############Y##????????????# # | | ??????????# ???????????? % ????????????#! !%+[ | | ??????????#?????????????? ???????????####### | | ????????????????????????? """ ????????????????# | | ????????????????????????? ?"" #???????????????##= | | ????????????????????????? ?"" #?????#########??# | | ????????????????????????? ??" #?????# #?# | | ????????????????????????? ????#?????# # | | ??????????????????????????????????????# # | | ????????????????????????????????????????# | | ??????????????????????????????????????????#### # | | ?????????????????????????????????????????????#### | | ????????????????????????????????????????????????# | | ????????????????????????????????????????????????# | | ????????????????????????????????????????????????## | | ????????????????????????????????????????????????# | | ????????????????????????????????????????????????# | | ????????????????????????????????????????????????# | | ????????????????????????????????????????????????## | | ?????????????????????????????????????????????????# | | ?????????????????????????????????????????????????? | | ?????????????????????????????????????????????????? | | ?????????????????????????????????????????????????? | | ?????????????????????????????????????????????????? | +----------------------------------------------------+ Best States ------------- Heat Dissipation 76 Energy Generation 16 Energy Capacity 290 Matter Stores 300 Matter Capacity 300 Sight Range 16 Terrain Scan Density 10 Armor Coverage 150 Core Shielding 30 Propulsion Shielding 66 Melee Speed Boost 20 Evasion (%) 56 Targeting Accuracy 6 Melee Accuracy 21 Recoil Reduction 2 Particle Charging 15 Offensive Hacking 10 Item Schematics ----------------- Airjet | -7/Factory | Scanalyzed Robot Schematics ------------------ None Fabricated ------------ Nothing Repaired ---------- Airjet | 15% | -8/Materials Studied --------- None Alien Tech Used ----------------- None Achievements -------------- Fitting Room Challenges ------------ None Game ------ Seed GuidedRocketTearclaws Manual? 0 Play Time 00:55:35 Cumulative 222.6 hours Start 2026.07.04 @ 20:13:44 End 2026.07.06 @ 19:46:36 Sessions 3 Manual Loads 0 Difficulty Rogue Special Mode None Game No. 371 Rogue 371 Adventurer 0 Explorer 0 Win Type - Total 2 Types 2/0/0/0/0/0/0/0/0/0 Lore% 66 Gallery% 61 Achievement% 49 Wizard Run 0 Options --------- Layout 2 ASCII 0 Keyboard 1 Movement Numpad Keybinds 0 Fullscreen 1 Font 20/SmallcapsGlow Map View 64x51 Zoom Use 0% Tactical HUD 1 Map Filters NONE Filters NONE Steam 1 RUN: 7b9b4a1e-594d-475c-a5ac-f3c6f0d01e51